[Event "4NCL 2022-2023"]
[Site "Daventry"]
[Date "2023.02.11"]
[Round "5.10"]
[White "Wall, Tim P"]
[Black "Lupulescu, Constantin"]
[Result "0-1"]
[ECO "B22"]
[WhiteElo "2239"]
[BlackElo "2592"]
[Annotator "TA"]
[PlyCount "86"]
[EventDate "2022.10.20"]
[EventType "team-tourn"]
[EventCountry "ENG"]
[SourceTitle "playchess.com"]
[Source "ChessBase"]
[SourceQuality "1"]
[TimeControl "40/6000+30:2400+30"]

{[%evp 12,86,13,7,9,25,22,28,18,9,20,0,0,0,0,-10,0,-8,0,-54,-47,-57,-56,-110,-114,-133,-72,-117,0,0,0,0,0,0,0,0,0,0,0,0,0,-13,0,0,0,-39,-12,-12,-14,-10,0,0,0,-8,-8,-8,-8,-8,-15,-40,-33,-77,-113,-114,-64,-116,-72,-77,-87,-595,-410,-624,-623,-623,-592,-454,-390]} 1. e4 {[%emt 0:00:10]} c5 {[%emt 0:00:02]} 2. c3 {[%emt 0:00:28]} d5 {[%emt 0:00:41]} 3. exd5 {[%emt 0:00:27]} Qxd5 {[%emt 0:00:05]} 4. d4 {[%emt 0:00:27]} Nf6 {[%emt 0:00:28]} 5. Nf3 {[%emt 0:00:18]} e6 {[%emt 0:00:12]} 6. Be3 {[%emt 0:02:11]} Nc6 {[%emt 0:03:04]} 7. Na3 {[%emt 0:05:41] next Nb5 is good for White.} cxd4 {[%emt 0:00:39] [#] B22: Sicilian: 2 c3.} 8. Nb5 $1 {[%emt 0:00:28]} Qd8 {[%emt 0:00:10] Prevents Nc7+} (8... Qd7 9. Nbxd4) 9. Nbxd4 {[%emt 0:00:53]} Nd5 {[%emt 0:00:28] White has an edge.} 10. Nxc6 {[%emt 0:06:24]} bxc6 {[%emt 0:00:24]} 11. Bd4 {[%emt 0:01:50]} f6 {[%emt 0:00:48]} 12. Bd3 {[%emt 0:06:58]} e5 {[%emt 0:10:51] [#]} 13. Be3 $146 {[%emt 0:01:09]} (13. Nxe5 $5 fxe5 14. Qh5+ Kd7 15. Bxe5 $11) ({Predecessor:} 13. Nxe5 fxe5 14. Qh5+ Kd7 15. Qxe5 Qe7 16. O-O-O Qxe5 17. Bxe5 Ke6 18. Rhe1 Kf7 19. f4 {0-1 Petre,N (2297)-Negrean,A (1840) Targu Mures op-A 2022 (3)}) 13... Nxe3 {[%emt 0:16:57]} 14. fxe3 {[%emt 0:00:12]} Bc5 {[%emt 0:01:42]} 15. Qc2 {[%emt 0:09:09]} (15. Qe2 $11) 15... Bxe3 $15 {[%emt 0:09:44]} 16. Bxh7 {[%emt 0:03:25] Rd1 would be deadly.} Be6 {[%emt 0:03:38] White is weak on the dark squares} 17. Rd1 {[%emt 0:28:42] [#]} ({White should try} 17. Bf5 $15 Bd5 18. Rd1) 17... Qb6 $1 $17 {[%emt 0:09:09][%cal Oh8h7] White must now prevent ...Rxh7!} 18. Rf1 {[%emt 0:02:49][%cal Of3e5,Bh1f1,Bf1f3,Bf3h3][%mdl 32]} Ke7 {[%emt 0:11:31]} (18... Bxa2 $2 19. Nxe5 (19. Qd3 Rd8 $17) 19... Qc7 20. Qe4 $18) ({Black should play} 18... Bf4 19. Rf2 Bc4) 19. Bf5 {[%emt 0:18:14] [#]} (19. Qd3 $2 Rad8 20. Qe2 Rxd1+ 21. Kxd1 Rxh7 $19) 19... Bd5 {[%emt 0:28:31] A strong pair of Bishops.} (19... Bxa2 20. Rd7+ (20. Qd3 $2 Rhd8 $19) 20... Kf8 21. Nxe5 $11) (19... Bxf5 $1 $17 20. Qxf5 Rhd8 21. Rxd8 Rxd8) 20. c4 $1 $11 {[%emt 0:01:04]} Bxf3 {[%emt 0:03:16]} (20... Qb4+ 21. Ke2 Bxc4+ 22. Kxe3 $16) 21. Rd7+ {[%emt 0:00:54]} Kf8 {[%emt 0:00:35]} 22. Rxf3 {[%emt 0:03:41]} Rxh2 {[%emt 0:00:12]} 23. Rh3 {[%emt 0:12:36] Against Re8} Bf4 {[%emt 0:01:01] Some like it hot} 24. c5 {[%emt 0:01:16]} Qa5+ {[%emt 0:02:53]} 25. Qc3 {[%emt 0:01:53]} Qxc3+ {[%emt 0:00:25]} 26. bxc3 {[%emt 0:00:03]} Rb8 {[%emt 0:01:40]} (26... Rxg2 $2 27. Rh8#) 27. Rxh2 {[%emt 0:00:13]} Bxh2 {[%emt 0:00:18][%mdl 4096] Endgame KRB-KRB} 28. Be6 {[%emt 0:01:17]} e4 {[%emt 0:02:23]} 29. Rf7+ {[%emt 0:00:58]} Ke8 {[%emt 0:00:06]} 30. Rxg7 {[%emt 0:00:08]} Rb1+ {[%emt 0:00:20]} 31. Ke2 {[%emt 0:00:05]} Bg1 {[%emt 0:01:37]} 32. Rxa7 {[%emt 0:01:40]} Rb2+ {[%emt 0:01:12]} 33. Kd1 {[%emt 0:00:20]} Bxc5 {[%emt 0:00:13]} 34. Ra4 {[%emt 0:00:48]} e3 {[%emt 0:00:25] ...e2+ is the strong threat.} 35. Bg4 {[%emt 0:00:18]} Rxg2 {[%emt 0:00:56]} 36. Bf3 {[%emt 0:00:05]} Rd2+ {[%emt 0:00:30]} 37. Ke1 {[%emt 0:00:12]} Kd7 {[%emt 0:00:40]} (37... Ke7 $17 {And now ...f5 would win.} 38. Re4+ Kd7) 38. Rc4 {[%emt 0:00:16]} (38. Rf4 $15) 38... Bd6 {[%emt 0:01:00] Hoping for ...Bg3+.} 39. Bxc6+ {[%emt 0:00:22]} Kd8 {[%emt 0:00:27] Black is much more active.} 40. Rd4 $2 {[%emt 0:00:33][%mdl 8192] This move loses the game for White.} (40. Rg4 $17 {lives longer.}) 40... Kc7 $19 {[%emt 0:00:20] ( -> ...Bg3+)} 41. Bb5 {[%emt 0:41:20]} (41. Bf3 $142 Bg3+ 42. Kf1 Rf2+ 43. Ke1 Rxf3+ {[%mdl 64] Discovered Attack} 44. Ke2 Rf2+ {[%mdl 64] Skewer} 45. Kxe3 Rxa2 46. Ke4) 41... Bg3+ {[%emt 0:40:27] Black is clearly winning.} ({Not} 41... Rxa2 42. Rc4+ Kb7 43. Re4 $17) 42. Kf1 {[%emt 0:00:58]} Rf2+ {[%emt 0:00:55]} (42... Rxa2 $2 {too greedy.} 43. Be2 $19) 43. Kg1 {[%emt 0:00:00]} Rb2 {[%emt 0:00:00] An entertaining game by Lupulescu.   Weighted Error Value: White=0.33/Black=0.10 (very precise)} (43... Rxa2 $2 {loses.} 44. Rg4 Bh2+ 45. Kf1 $19) 0-1

[Event "4NCL 2022-2023"]
[Site "Daventry"]
[Date "2023.02.11"]
[Round "5.11"]
[White "Cyborowski, Lukasz"]
[Black "Movileanu, Daniela"]
[Result "1-0"]
[ECO "B38"]
[WhiteElo "2498"]
[BlackElo "2169"]
[Annotator "TA"]
[PlyCount "107"]
[EventDate "2022.10.20"]
[EventType "team-tourn"]
[EventCountry "ENG"]
[SourceTitle "playchess.com"]
[Source "ChessBase"]
[SourceQuality "1"]
[TimeControl "40/6000+30:2400+30"]

{[%evp 29,107,48,60,53,59,58,102,102,127,123,186,189,244,226,233,179,180,189,171,185,178,182,212,203,280,273,283,282,301,289,337,0,275,282,260,256,381,327,320,308,312,308,307,300,341,342,377,330,410,406,517,453,423,0,481,456,485,480,464,463,497,472,729,720,1316,1286,1152,1122,933,924,953,847,2408,2216,29984,29985,29985,29984,29979,29980]} 1. c4 {[%emt 0:00:10]} c5 {[%emt 0:01:16]} 2. Nf3 {[%emt 0:03:00]} Nc6 {[%emt 0:00:56]} 3. d4 {[%emt 0:02:36]} cxd4 {[%emt 0:00:07]} 4. Nxd4 {[%emt 0:00:07]} g6 {[%emt 0:00:09]} 5. e4 {[%emt 0:01:44]} Bg7 {[%emt 0:01:28]} 6. Be3 {[%emt 0:00:32]} Nf6 {[%emt 0:00:26]} 7. Nc3 {[%emt 0:00:16]} O-O {[%emt 0:01:51]} 8. Be2 {[%emt 0:01:29]} d6 {[%emt 0:01:05]} 9. O-O {[%emt 0:01:31]} Bd7 {[%emt 0:02:45]} 10. Qd2 {[%emt 0:01:13]} Nxd4 {[%emt 0:02:01]} 11. Bxd4 {[%emt 0:00:12]} Bc6 {[%emt 0:00:14]} 12. f3 {[%emt 0:02:32]} a5 {[%emt 0:00:37]} 13. b3 {[%emt 0:00:36]} Nd7 {[%emt 0:02:43]} 14. Be3 {[%emt 0:00:12]} Nc5 {[%emt 0:07:49]} 15. Rac1 {[%emt 0:05:21][%cal Ba1c1,Bc1c4,Bc4h4][%mdl 32]} Qb6 {[%emt 0:02:31]} 16. Nd5 {[%emt 0:05:30] B38: Sicilian: Maroczy Bind with 5...Bg7 and 7...0-0.} Bxd5 {[%emt 0:01:03]} 17. cxd5 {[%emt 0:00:03]} f5 {[%emt 0:05:22] [#]} 18. exf5 $1 {[%emt 0:07:41] White is better.} gxf5 {[%emt 0:05:44][%cal Of5f4]} 19. Rc4 {[%emt 0:07:00] [#]} Qa7 $146 {[%emt 0:19:56]} (19... f4 $16) ({Predecessor:} 19... f4 20. Bf2 Be5 21. Re1 Qd8 22. Bf1 b6 23. Bd4 Rf5 24. Bxe5 dxe5 25. Qc2 Qf8 26. a3 e6 27. dxe6 Nxe6 {1-0 Nguyen,A (2537)-Bagamasbad,E (2342) Manila Pichay Cup 3rd 2007 (1)}) 20. Rh4 $18 {[%emt 0:15:34]} Rf6 {[%emt 0:04:29]} (20... b6 $142 21. Bb5 Rf7) 21. Kh1 {[%emt 0:02:53]} b6 {[%emt 0:02:35]} 22. Bd1 {[%emt 0:13:12][%cal Be2d1,Bd1c2,Bc2f5][%mdl 32]} Qa6 {[%emt 0:06:35]} 23. Re1 {[%emt 0:04:08] Black must now prevent Bc2.} ({Don't take} 23. Be2 Qc8 24. Rb1 Qe8 $16) 23... Qd3 {[%emt 0:04:56]} 24. Bc2 {[%emt 0:00:30]} Qxd2 {[%emt 0:01:26]} 25. Bxd2 {[%emt 0:00:04]} Rf7 {[%emt 0:01:05]} 26. Rh5 {[%emt 0:02:08]} Raf8 {[%emt 0:02:14]} 27. g4 {[%emt 0:04:34]} Be5 {[%emt 0:07:30]} 28. Bxf5 {[%emt 0:00:59]} Kh8 {[%emt 0:01:29] Black is weak on the light squares} 29. Bh6 {[%emt 0:07:47]} Ra8 {[%emt 0:03:18]} 30. Bd2 $2 {[%emt 0:07:19]} ({White should try} 30. f4 $18 Bc3 31. Re2) 30... b5 $2 {[%emt 0:01:25][%mdl 8192] [#]} (30... Raf8 $1 $11 {and Black is okay.} 31. Kg2 Rb8 32. Rxe5 dxe5) 31. Rxe5 $1 {[%emt 0:04:57][%mdl 512]} dxe5 {[%emt 0:00:08]} 32. Bc3 {[%emt 0:00:01][%cal Bd2c3,Bc3e5,Be5d4,Bd4e3][%mdl 32]} Ra6 {[%emt 0:05:29]} (32... Kg8 {was necessary.} 33. Bxe5 b4) 33. Bxe5+ {[%emt 0:05:56] A strong pair of Bishops.} Kg8 {[%emt 0:00:01]} 34. Bd4 {[%emt 0:00:40]} Rxf5 {[%emt 0:03:12]} 35. Rxf5 {[%emt 0:00:04][%mdl 4096] Endgame KRB-KRN} ({Less strong is} 35. gxf5 Nd7 36. Kg2 Rd6 $16) 35... Nd3 {[%emt 0:00:04]} 36. Be3 {[%emt 0:00:44]} a4 {[%emt 0:01:03]} 37. Kg2 {[%emt 0:03:21]} axb3 {[%emt 0:01:08]} 38. axb3 {[%emt 0:00:03]} Kg7 {[%emt 0:01:51]} 39. Kg3 {[%emt 0:00:42]} b4 {[%emt 0:00:36]} 40. Bd4+ {[%emt 0:01:38]} Kg8 {[%emt 0:00:58]} 41. Be3 {[%emt 0:40:41]} Kg7 $1 {[%emt 0:40:04]} 42. Bg5 {[%emt 0:00:00]} Ra7 {[%emt 0:00:00]} 43. h4 {[%emt 0:00:00][%cal Bh2h4,Bh4h5][%mdl 32]} h6 {[%emt 0:00:00]} 44. Be3 {[%emt 0:00:00]} Ra6 {[%emt 0:00:00]} 45. h5 {[%emt 0:00:00]} Rd6 {[%emt 0:00:00]} (45... e5 $142 46. f4 exf4+ 47. Bxf4 Ra3) 46. f4 {[%emt 0:00:00]} e6 {[%emt 0:00:00]} 47. dxe6 {[%emt 0:00:00]} Rxe6 {[%emt 0:00:00]} 48. Bd4+ {[%emt 0:00:00]} Kg8 {[%emt 0:00:00]} 49. Rd5 {[%emt 0:00:00] Threatens to win with g5.} Nc1 {[%emt 0:00:00]} 50. Be5 {[%emt 0:00:00] Hoping for g5.} Nxb3 {[%emt 0:00:00]} 51. g5 {[%emt 0:00:00] g6 would kill now.} hxg5 {[%emt 0:00:00]} 52. fxg5 {[%emt 0:00:00][%cal Bf4g5,Bg5g6][%mdl 32] White mates.} Nd2 {[%emt 0:00:00]} 53. Rd8+ {[%emt 0:00:00]} Kf7 {[%emt 0:00:00]} 54. g6+ {[%emt 0:00:00] Weighted Error Value: White=0.32/Black=0.56} 1-0

[Event "4NCL 2022-2023"]
[Site "Daventry"]
[Date "2023.02.11"]
[Round "5.12"]
[White "Townsend, M Paul"]
[Black "Jaracz, Pawel"]
[Result "1/2-1/2"]
[ECO "D02"]
[WhiteElo "2198"]
[BlackElo "2465"]
[Annotator "TA"]
[PlyCount "37"]
[EventDate "2022.10.20"]
[EventType "team-tourn"]
[EventCountry "ENG"]
[SourceTitle "playchess.com"]
[Source "ChessBase"]
[SourceQuality "1"]
[TimeControl "40/6000+30:2400+30"]

{[%evp 12,37,6,0,13,3,2,9,33,0,0,0,0,0,0,0,0,0,0,0,0,0,0,0,0,0,0,0]} 1. d4 {[%emt 0:00:06]} d5 {[%emt 0:00:35]} 2. Bf4 {[%emt 0:00:26]} Nf6 {[%emt 0:00:53]} 3. e3 {[%emt 0:00:16]} c5 {[%emt 0:00:26]} 4. c3 {[%emt 0:00:32]} Nc6 {[%emt 0:00:47]} 5. Nd2 {[%emt 0:00:25]} e6 {[%emt 0:00:12]} 6. Ngf3 {[%emt 0:00:30]} Be7 {[%emt 0:02:43] 6...cxd4 is setting a new trend.} 7. Ne5 {[%emt 0:01:12]} Nxe5 {[%emt 0:01:37] D02: 1 d4 d5 2 Nf3 sidelines, including 2...Nf6 3 g3 and 2...Nf6 3 Bf4.} 8. dxe5 {[%emt 0:01:30]} Nd7 {[%emt 0:00:08] [#]} 9. h4 $1 {[%emt 0:03:59]} f6 {[%emt 0:30:28]} (9... c4 10. Qg4) 10. Nf3 {[%emt 0:10:43]} O-O {[%emt 0:21:24] The position is equal.} 11. Bd3 {[%emt 0:03:50][%cal Of3g5] And now Ng5! would win.} fxe5 {[%emt 0:04:03]} 12. Nxe5 {[%emt 0:50:47]} Nxe5 {[%emt 0:01:04]} 13. Bxe5 {[%emt 0:00:12] Black must now prevent Qh5.} Bf6 {[%emt 0:00:35]} 14. Qh5 {[%emt 0:05:33]} g6 {[%emt 0:08:21]} 15. Bxg6 {[%emt 0:03:02][%mdl 64] [#] Demolition} hxg6 {[%emt 0:00:05]} 16. Qxg6+ {[%emt 0:00:05]} Kh8 {[%emt 0:00:03]} 17. Qh6+ {[%emt 0:02:38]} Kg8 {[%emt 0:00:07]} 18. Qg6+ {[%emt 0:00:10]} Kh8 {[%emt 0:00:04] [#]} 19. Qh6+ $146 {[%emt 0:00:54] An uneventful encounter.   Weighted Error Value: White=0.05 (flawless) /Black=0.04 (flawless)} ({Predecessor:} 19. Qh5+ Kg7 20. Qg4+ Kf7 21. Qh5+ Ke7 22. Rh3 Bxe5 23. Qxe5 Kd7 24. Rg3 Kc6 25. Rg6 Qxh4 {1-0 Atanasov,A (2172)-Deuer,M (2231) Titled Tuesday intern op 09th Mar blitz 2021 (1)}) 1/2-1/2

[Event "4NCL 2022-2023"]
[Site "Daventry"]
[Date "2023.02.11"]
[Round "5.13"]
[White "Galyas, Miklos"]
[Black "Walton, Alan J"]
[Result "1/2-1/2"]
[ECO "D02"]
[WhiteElo "2442"]
[BlackElo "2089"]
[Annotator "TA"]
[PlyCount "109"]
[EventDate "2022.10.20"]
[EventType "team-tourn"]
[EventCountry "ENG"]
[SourceTitle "playchess.com"]
[Source "ChessBase"]
[SourceQuality "1"]
[TimeControl "40/6000+30:2400+30"]

{[%evp 12,109,8,3,29,18,55,53,55,66,66,53,66,54,45,-28,-21,-34,-30,-45,-25,-41,0,0,0,0,0,0,0,0,0,0,0,0,0,0,39,0,95,83,93,29,50,-54,0,-42,-4,0,-7,-15,-31,-55,0,-29,0,0,32,0,32,32,32,0,47,0,32,0,0,0,0,0,41,0,0,0,0,0,0,0,0,0,0,0,0,0,0,0,0,0,0,0,0,0,0,0,0,0,0,0,0,0]} 1. d4 {[%emt 0:00:02]} d5 {[%emt 0:00:23]} 2. Nf3 {[%emt 0:00:10]} Nf6 {[%emt 0:01:04]} 3. Bf4 {[%emt 0:00:09]} e6 {[%emt 0:02:33]} 4. e3 {[%emt 0:00:10]} c5 {[%emt 0:06:05]} 5. c3 {[%emt 0:00:09]} Nc6 {[%emt 0:00:36]} 6. Nbd2 {[%emt 0:00:12]} Be7 {[%emt 0:00:55] 6...cxd4 is setting a new trend.} 7. Bd3 {[%emt 0:00:31]} Nd7 {[%emt 0:30:39] D02: 1 d4 d5 2 Nf3 sidelines, including 2...Nf6 3 g3 and 2...Nf6 3 Bf4.} 8. h4 {[%emt 0:23:44]} Bf6 {[%emt 0:11:14] [#]} 9. Qe2 $146 {[%emt 0:00:27]} ({Predecessor:} 9. Bb5 a6 10. Bxc6 bxc6 11. g4 cxd4 12. exd4 c5 13. g5 Be7 14. Nb3 a5 15. dxc5 {0-1 Szuhai,B (2240)-Kiss,J HUN-chT2 9293 1992}) 9... e5 {[%emt 0:02:37] White is slightly better.} 10. dxe5 {[%emt 0:00:13]} Ndxe5 {[%emt 0:00:32]} 11. Nxe5 {[%emt 0:00:32]} Bxe5 {[%emt 0:03:28]} 12. Nf3 {[%emt 0:07:31]} Bg4 {[%emt 0:12:54]} 13. Bxe5 {[%emt 0:07:13]} (13. O-O-O $14) 13... Nxe5 $11 {[%emt 0:01:09][%mdl 64] [#] Pin} 14. Bb5+ {[%emt 0:00:08][%cal Bd3b5,Bb5a4,Ba4b3,Bb3d5][%mdl 32]} Kf8 {[%emt 0:01:05]} 15. O-O-O {[%emt 0:08:06]} a6 {[%emt 0:03:39]} (15... Kg8 $5 {[%cal Ra7a6]} 16. Rhg1 c4 $15) 16. Ba4 {[%emt 0:19:00]} Qa5 {[%emt 0:00:13]} 17. Rxd5 {[%emt 0:02:46]} Nxf3 {[%emt 0:00:17]} 18. gxf3 {[%emt 0:00:29]} Be6 {[%emt 0:00:05]} 19. Bb3 {[%emt 0:00:28]} Bxd5 {[%emt 0:00:18]} 20. Bxd5 {[%emt 0:00:02]} Rd8 {[%emt 0:00:23]} 21. e4 {[%emt 0:03:22]} Qc7 {[%emt 0:01:48]} 22. h5 {[%emt 0:01:10]} h6 {[%emt 0:00:34]} 23. Qe3 {[%emt 0:03:24]} b5 {[%emt 0:01:16][%cal Bb7b5,Bb5b4][%mdl 32] Black is weak on the light squares} 24. f4 {[%emt 0:01:10][%mdl 1024] White has compensation.} Qe7 {[%emt 0:01:12]} (24... Kg8 $1 $11 {remains equal.}) 25. Rg1 {[%emt 0:03:48]} a5 {[%emt 0:04:50]} 26. Qg3 {[%emt 0:06:56] White is more active.} (26. Rd1 $16) 26... Rg8 $1 {[%emt 0:00:38]} 27. Qg4 {[%emt 0:08:30]} (27. Qh3 $14) 27... a4 {[%emt 0:02:42]} (27... g5 $15) 28. Rd1 {[%emt 0:04:21]} b4 {[%emt 0:02:13]} 29. c4 {[%emt 0:00:28]} g5 {[%emt 0:01:31] Threatens to win with ...gxf4.} 30. hxg6 $1 {[%emt 0:06:59]} Rxg6 {[%emt 0:00:06]} 31. Qf3 {[%emt 0:00:06] [#]} a3 {[%emt 0:06:34]} 32. b3 {[%emt 0:00:01]} Kg7 {[%emt 0:00:42]} (32... Qf6 {seems wilder.} 33. e5 Qf5 34. Kd2 Kg7) 33. e5 {[%emt 0:00:17]} Kh8 {[%emt 0:04:54]} 34. Qe3 {[%emt 0:00:21]} (34. Qh5 {with more complications.} Kg7 35. Kc2 f5 36. Kd2) 34... f5 {[%emt 0:02:04]} 35. Qh3 {[%emt 0:01:32]} Qf8 {[%emt 0:00:14]} 36. Rh1 {[%emt 0:00:44]} Kh7 {[%emt 0:00:21]} (36... Rg4 $11 {deserves consideration.}) 37. Qe3 {[%emt 0:01:20]} (37. Kd2 $1 $14) 37... Qe7 {[%emt 0:01:12]} 38. Kc2 {[%emt 0:00:08]} Rf8 {[%emt 0:00:59]} 39. Rd1 {[%emt 0:00:36]} Rd8 {[%emt 0:00:04]} 40. Qd3 {[%emt 0:01:11]} Qf8 {[%emt 0:00:09]} 41. Re1 {[%emt 0:00:00]} Rg4 {[%emt 0:00:00] The position is equal.} 42. Qe3 {[%emt 0:00:00]} Qe7 {[%emt 0:00:00]} 43. Rh1 {[%emt 0:01:08]} Rf8 {[%emt 0:01:16]} 44. Bf3 {[%emt 0:05:46]} Rgg8 {[%emt 0:02:34]} 45. Rd1 {[%emt 0:01:08]} Rd8 {[%emt 0:00:11]} 46. Rd5 {[%emt 0:04:58]} Rg1 $1 {[%emt 0:00:23]} 47. Qd3 {[%emt 0:01:45]} (47. Rxc5 $2 {too greedy.} Ra1 48. Bd5 Rxa2+ 49. Kb1 Rb2+ 50. Kc1 Qg7 $19) (47. Qxc5 $2 Qxc5 48. Rxc5 Ra1 49. Rc7+ Kh8 $19) 47... Rxd5 {[%emt 0:02:43]} 48. Qxf5+ {[%emt 0:05:07]} Kg7 $1 {[%emt 0:00:51]} 49. Bxd5 {[%emt 0:07:00][%mdl 4096] Endgame KQR-KQB} (49. cxd5 $5 Qh4 $8 50. Kd3 (50. Qd7+ Kg8 $11) 50... Qxf2 51. Qd7+ Kh8 52. Qd8+ Kg7 53. Qf6+ Kg8 54. Qe6+ (54. Qd8+ Kg7 $11) 54... Kg7 55. Qe7+ Kg8 56. Qe8+ Kg7 57. Qe7+ Kg8 58. Qe8+ Kg7 59. Qe7+ $11) 49... Qf8 $1 {[%emt 0:01:29]} 50. Qd7+ {[%emt 0:00:23]} Kh8 {[%emt 0:00:38]} 51. Be4 {[%emt 0:03:12][%csl Ge4][%cal Rd7h7] Some like it hot} Rg7 {[%emt 0:00:11] Prevents Qh7+} 52. Qd2 {[%emt 0:00:14] Hoping for f5.} Rg4 {[%emt 0:00:26] Wards off f5} 53. Qd7 {[%emt 0:01:51][%csl Ge4][%cal Rd7h7]} Rg7 {[%emt 0:00:08] Repels Qh7+} 54. Qd2 {[%emt 0:00:51] f5 is the strong threat.} Rg4 {[%emt 0:00:04] Inhibits f5.} 55. Qd7 {[%emt 0:01:56] Weighted Error Value: White=0.13 (very precise) /Black=0.14 (very precise)} 1/2-1/2